bitfinex/quotes_ETHUSD_20250924
["timestamp","ask_amount","ask_price","bid_price","bid_amount"]
[1758673202676,0.4893,4188.9,4188.8,6.46019174]
[1758673202677,0.02,4188.9,4188.8,6.46019174]
[1758673202889,0.02,4188.9,4188.8,21.94027692]
[1758673203190,0.02,4188.9,4188.8,22.73227692]
[1758673203390,1e-08,4188.9,4188.8,22.73227692]
[1758673203591,1e-08,4188.9,4188.8,23.42237692]
[1758673205815,1e-08,4188.9,4188.8,26.30317692]
[1758673207683,1e-08,4188.9,4188.8,31.95311547]
[1758673210292,1e-08,4188.9,4188.8,21.56407692]
[1758673210631,1e-08,4188.9,4188.8,21.81707692]
[1758673210833,1e-08,4188.9,4188.8,21.81907692]
[1758673211198,0.46930001,4188.9,4188.8,17.77207692]
[1758673211400,0.69450001,4188.9,4188.8,21.82307692]
[1758673211932,0.46930001,4188.9,4188.8,21.82307692]
[1758673212332,0.71820001,4188.9,4188.8,20.93731856]
[1758673212506,1e-08,4188.9,4188.8,20.93731856]
[1758673213328,0.45410001,4188.9,4188.8,20.93731856]
[1758673214822,0.45410001,4188.9,4188.8,20.93931856]
[1758673215337,1e-08,4188.9,4188.8,23.50869643]
[1758673215521,1e-08,4188.9,4188.8,24.18919643]
[1758673215834,1e-08,4188.9,4188.8,24.30839643]
[1758673217725,1e-08,4188.9,4188.8,27.30839643]
[1758673221556,1e-08,4189.9,4189.0,0.792]
[1758673221720,0.35578192,4191.8,4190.1,0.792]
[1758673222051,0.02,4191.9,4190.8,2.38617924]
[1758673222052,0.2489,4191.0,4190.8,2.38617924]
[1758673222247,1e-08,4190.9,4190.8,27.38111779]
[1758673224453,1e-08,4190.9,4190.8,27.81461779]
[1758673224639,1e-08,4190.9,4190.8,22.2879642]
[1758673224953,1e-08,4190.9,4190.8,18.2349642]
[1758673225154,1e-08,4190.9,4190.8,25.0344642]
[1758673225358,1e-08,4190.9,4190.8,18.9154642]
[1758673225664,1e-08,4190.9,4190.8,25.0374642]
[1758673230249,1e-08,4190.9,4190.8,25.0364642]
[1758673230849,0.02,4192.9,4192.4,2.38523221]
[1758673231065,0.2489,4192.8,4192.7,2.3850979]
[1758673231219,0.4121,4192.8,4192.7,6.4450979]
[1758673231419,0.4121,4192.8,4192.7,20.9450979]
[1758673231633,0.4121,4192.8,4192.7,21.0642979]
[1758673234188,0.2489,4192.8,4192.7,21.0642979]
[1758673234345,0.02,4192.9,4192.8,2.38504102]
[1758673234783,0.2689,4192.9,4192.8,2.38504102]
[1758673234987,0.4321,4192.9,4192.8,2.38504102]
[1758673235786,0.4321,4192.9,4192.8,3.17704102]
[1758673235787,0.02,4192.9,4192.8,3.17704102]
[1758673235996,0.02,4192.9,4192.8,3.29624102]
[1758673237303,0.4321,4192.9,4192.8,2.38504102]
[1758673237452,0.4321,4192.9,4192.8,6.44204102]
[1758673240501,0.2689,4192.9,4192.8,6.43904102]
[1758673240669,0.4321,4192.9,4192.8,2.38504102]
[1758673240986,0.2689,4192.9,4192.8,2.38504102]
[1758673241157,0.02,4192.9,4192.8,2.38504102]
[1758673241352,0.021,4192.9,4192.8,2.38504102]
[1758673241586,0.4143,4192.9,4192.8,2.38504102]
[1758673242472,0.021,4192.9,4192.8,2.38504102]
[1758673244185,0.021,4192.9,4192.8,16.88504102]
[1758673245162,0.6818,4192.9,4192.8,16.88504102]
[1758673245976,0.021,4192.9,4192.8,16.88504102]
[1758673246178,0.021,4192.9,4192.8,20.93504102]
[1758673247305,0.021,4192.9,4192.8,21.05424102]
[1758673248593,0.02,4193.9,4193.4,2.38469976]
[1758673248810,0.02,4193.9,4193.7,2.38452917]
[1758673249039,0.02,4193.9,4193.8,2.52751703]
[1758673249188,0.02,4193.9,4193.8,17.02751703]
[1758673249387,1e-08,4193.9,4193.8,17.00367231]
[1758673249632,1e-08,4193.9,4193.8,19.74863432]
[1758673249808,1e-08,4193.9,4193.8,20.42963432]
[1758673250219,1e-08,4193.9,4193.8,19.74863432]
[1758673251310,1e-08,4193.9,4193.8,20.42963432]
[1758673251917,1e-08,4193.9,4193.8,22.49363432]
[1758673252224,1e-08,4193.9,4193.8,28.12962845]
[1758673252427,1e-08,4193.9,4193.8,22.49363432]
[1758673252736,1e-08,4194.9,4194.4,0.792]
[1758673252925,1e-08,4194.9,4194.5,4.36661881]
[1758673253126,1e-08,4194.9,4194.8,8.01989801]
[1758673253314,1e-08,4194.9,4194.8,26.56889801]
[1758673253529,1e-08,4194.9,4194.8,17.56490388]
[1758673253824,1e-08,4194.9,4194.8,27.24989801]
[1758673254137,1e-08,4194.9,4194.8,29.26644203]
[1758673254589,1e-08,4194.9,4194.8,22.9494479]
[1758673255742,1e-08,4194.9,4194.8,23.1832479]
[1758673255900,1e-08,4194.9,4194.8,22.9494479]
[1758673256498,1e-08,4194.9,4194.8,23.6304479]
[1758673258153,1e-08,4194.9,4194.8,22.9494479]
[1758673259407,1e-08,4194.9,4194.8,16.88390388]
[1758673259607,1e-08,4194.9,4194.8,20.92790388]
[1758673260735,0.00100001,4194.9,4194.8,20.92790388]
[1758673261036,0.00100001,4194.9,4194.8,21.60890388]
[1758673261959,0.00100001,4194.9,4194.8,20.92790388]
[1758673262746,0.00100001,4194.9,4194.8,21.04630388]
[1758673264650,0.00100001,4194.9,4194.8,24.51494148]
[1758673264945,0.00100001,4194.9,4194.8,24.28114148]
[1758673265345,0.00100001,4194.9,4194.8,24.96214148]
[1758673267331,0.00100001,4194.9,4194.8,20.91814148]
[1758673267540,0.00100001,4194.9,4194.8,24.95714148]
[1758673271250,0.00100001,4194.9,4194.8,23.48414148]
[1758673271614,0.00100001,4194.9,4194.8,24.19284148]
[1758673273250,0.00100001,4194.9,4194.8,24.98484148]
[1758673274457,1e-08,4195.9,4195.3,0.792]
[1758673274627,1e-08,4195.9,4195.8,2.38333571]
[1758673274958,1e-08,4195.9,4195.8,6.41833571]
[1758673275137,1e-08,4195.9,4195.8,20.91833571]
[1758673278662,1e-08,4195.9,4195.8,22.40073571]
[1758673278864,1e-08,4195.9,4195.8,22.71835452]
[1758673279937,0.00100001,4195.9,4195.8,22.71835452]
[1758673280852,0.02,4196.9,4196.2,0.792]
[1758673280853,1e-08,4196.9,4196.2,0.792]
[1758673281151,1e-08,4196.9,4196.8,8.93934556]
[1758673281465,1e-08,4196.9,4196.8,27.47334556]
[1758673281629,1e-08,4196.9,4196.8,29.91618316]
[1758673281965,1e-08,4196.9,4196.8,30.70818316]
[1758673282170,1e-08,4196.9,4196.8,31.16028316]
[1758673282371,1e-08,4196.9,4196.8,31.39858316]
[1758673284538,1e-08,4196.9,4196.8,31.51698316]
[1758673285968,1e-08,4196.9,4196.8,24.72210542]
[1758673286171,1e-08,4196.9,4196.8,17.00116782]
[1758673286383,1e-08,4196.9,4196.8,21.03216782]
[1758673286744,1e-08,4196.9,4196.8,17.00116782]
[1758673286944,1e-08,4196.9,4196.8,21.03116782]
[1758673289670,1e-08,4196.9,4196.8,21.72156782]
[1758673289971,1e-08,4196.9,4196.8,24.95640542]
[1758673290148,1e-08,4196.9,4196.8,31.51298316]
[1758673290553,1e-08,4196.9,4196.8,20.23600542]
[1758673290870,1e-08,4196.9,4196.8,27.01640542]
[1758673291374,0.2483,4198.2,4196.9,0.792]
[1758673291577,0.02,4198.9,4197.4,0.792]
[1758673291738,0.02,4198.9,4197.5,8.47237045]
[1758673291739,0.6855,4198.8,4197.5,8.47237045]
[1758673292073,0.02,4198.9,4198.8,2.38163284]
[1758673292377,0.02,4198.9,4198.8,16.88163284]
[1758673292544,0.7055,4198.9,4198.8,16.88163284]
[1758673294050,0.7055,4198.9,4198.8,14.5]
[1758673295067,0.7055,4198.9,4198.8,16.88163284]
[1758673296148,0.7055,4198.9,4198.8,14.5]
[1758673296549,0.7055,4198.9,4198.8,16.88163284]
[1758673296966,0.7055,4198.9,4198.8,14.5]
[1758673297150,0.7055,4198.9,4198.8,16.88163284]
[1758673297880,0.7065,4198.9,4198.8,14.5]
[1758673298579,0.7065,4198.9,4197.4,0.6904]
[1758673298761,0.7065,4198.9,4198.4,2.38184341]
[1758673298762,0.6855,4198.8,4198.4,2.38184341]
[1758673298963,1.07037527,4198.7,4198.5,14.5]
[1758673299159,1.07037527,4198.7,4197.4,2.38240546]
[1758673299160,0.6855,4198.6,4196.7,0.2383]
[1758673299496,0.6855,4198.6,4196.6,0.4521]
[1758673299497,0.34857231,4198.5,4196.2,0.2383]
[1758673299800,2.38201745,4198.2,4197.4,16.88242703]
[1758673300002,2.38201745,4198.2,4197.4,14.5]
[1758673300003,4.03407231,4198.1,4197.4,14.5]
[1758673300302,2.38231993,4197.6,4196.8,2.38275296]
[1758673300466,3.81876032,4197.5,4196.9,2.38270811]
[1758673300808,0.81887435,4197.4,4197.0,14.5]
[1758673300948,2.51587567,4197.3,4196.5,2.38288793]
[1758673301149,0.81887837,4197.2,4196.5,2.38288793]
[1758673301363,0.1184,4197.0,4196.6,14.5]
[1758673301576,3.6603,4197.4,4197.1,2.38254207]
[1758673301789,0.1184,4197.3,4197.2,2.38254074]
[1758673302147,0.7787,4197.3,4197.2,2.38254074]
[1758673302372,0.7787,4197.3,4197.1,2.38258897]
[1758673302685,0.6603,4197.2,4197.1,2.38258897]
[1758673302982,7.41169066,4197.8,4196.8,4.037]
[1758673303148,1.00934564,4197.7,4197.2,2.38253528]
[1758673303382,1.00945176,4197.6,4197.1,0.1184]
[1758673303643,0.13346087,4197.5,4197.4,2.38242721]
[1758673303799,0.49209066,4197.8,4197.4,2.38242721]
[1758673304127,0.49209066,4197.8,4197.6,2.3823137]
[1758673304128,0.13351792,4197.7,4197.6,2.3823137]
[1758673304430,0.3497,4198.3,4198.2,2.38197322]
[1758673304632,0.37364632,4198.5,4198.4,2.38185975]
[1758673304918,0.50721442,4198.5,4198.4,2.38185975]
[1758673306514,3.45,4198.9,4198.8,2.38163284]
[1758673306515,0.021,4198.9,4198.8,2.38163284]
[1758673306699,0.15460304,4198.9,4198.8,2.38163284]
[1758673308321,0.021,4198.9,4198.8,16.88163284]
[1758673309721,0.021,4198.9,4198.8,17.56503284]
[1758673310021,0.021,4198.9,4198.8,20.04841699]
[1758673310022,1e-08,4198.9,4198.8,20.04841699]
[1758673310187,1e-08,4199.0,4198.9,3.17357612]
[1758673310382,1e-08,4199.0,4198.9,7.89497612]
[1758673310817,1e-08,4199.0,4198.9,22.39497612]
[1758673311020,1e-08,4199.0,4198.9,24.31711681]
[1758673312146,0.006,4200.0,4199.9,2.38100907]
[1758673312292,1e-08,4200.0,4199.9,6.42200907]
[1758673312492,1e-08,4200.0,4199.9,2.60910907]
[1758673312705,1e-08,4200.0,4199.9,14.5]
[1758673312911,0.66030001,4200.0,4199.9,14.5]
[1758673313140,0.66030001,4200.0,4199.9,16.88100907]
[1758673313441,1e-08,4200.0,4199.9,16.88100907]
[1758673315791,1e-08,4200.0,4199.9,2.38100907]
[1758673316406,1e-08,4200.0,4199.9,16.88100907]
[1758673316697,1e-08,4200.0,4199.9,21.61940907]
[1758673317292,1e-08,4200.0,4199.9,24.01946041]
[1758673317512,0.00100001,4200.0,4199.9,24.01946041]
[1758673318230,0.00100001,4200.0,4199.9,20.93600907]
[1758673318849,0.00100001,4200.0,4199.9,21.61940907]
[1758673320451,0.00100001,4200.0,4199.9,21.73780907]
[1758673320659,0.00100001,4200.0,4199.9,22.52980907]
[1758673321525,1e-08,4200.9,4200.4,2.38071232]
[1758673321726,1e-08,4200.9,4200.8,3.17249895]
[1758673321923,1e-08,4200.9,4200.8,7.25230393]
[1758673322261,1e-08,4200.9,4200.8,22.41189895]
[1758673326467,1e-08,4200.9,4200.8,16.88049895]
[1758673326645,1e-08,4200.9,4200.8,20.93749895]
[1758673326847,1e-08,4200.9,4200.8,23.95271007]
[1758673327176,1e-08,4200.9,4200.8,24.74471007]
[1758673327978,1e-08,4201.9,4201.8,2.3799324]
[1758673328186,1e-08,4201.9,4201.8,7.25273172]
[1758673328478,1e-08,4201.9,4201.8,9.08160628]
[1758673328683,1e-08,4201.9,4201.8,23.58160628]
[1758673330084,1e-08,4201.9,4201.8,18.04920628]
[1758673330255,1e-08,4201.9,4201.8,22.79160628]
[1758673330779,1e-08,4201.9,4201.8,23.58360628]
[1758673331081,0.66030001,4201.9,4201.8,16.8799324]
[1758673331587,1e-08,4201.9,4201.8,16.9983324]
[1758673331885,1e-08,4201.9,4201.8,21.0663324]
[1758673332388,0.24350001,4201.9,4201.8,21.0663324]
[1758673332570,1e-08,4201.9,4201.8,21.0663324]
[1758673332777,1e-08,4201.9,4201.8,24.09226648]
[1758673333151,1e-08,4201.9,4201.8,23.41096648]
[1758673333349,1e-08,4201.9,4201.8,21.0663324]
[1758673333553,1e-08,4201.9,4201.8,22.0938324]
[1758673333774,1e-08,4201.9,4201.8,22.5396324]
[1758673334086,1e-08,4201.9,4201.8,18.0258324]
[1758673334260,1e-08,4201.9,4201.8,24.1558324]
[1758673335262,1e-08,4201.9,4201.8,16.9983324]
[1758673335577,1e-08,4201.9,4201.8,21.0663324]
[1758673337589,0.00100001,4201.9,4201.8,21.0663324]
[1758673338697,0.00100001,4201.9,4201.8,21.7476324]
[1758673339194,0.00100001,4201.9,4201.8,21.0663324]
[1758673339699,0.00100001,4201.9,4201.8,21.0623324]
[1758673339855,0.00100001,4201.9,4201.8,16.9983324]
[1758673340056,0.70210001,4201.9,4201.8,16.9983324]
[1758673340282,0.70210001,4201.9,4201.8,21.0623324]
[1758673341225,0.70210001,4201.9,4201.8,14.6184]
[1758673341393,0.70210001,4201.9,4200.8,0.004]
[1758673341394,0.70210001,4201.9,4200.9,2.38039717]
[1758673341599,0.70210001,4201.9,4201.1,0.1184]
[1758673341600,3.0,4201.7,4201.1,0.1184]
[1758673341798,1.48836826,4201.6,4201.1,0.1184]
[1758673342039,1.35529968,4201.6,4201.2,14.5]
[1758673342215,0.7011,4201.5,4201.2,14.5]
[1758673342545,0.65419968,4201.6,4201.2,14.5]
[1758673342546,0.7011,4201.4,4201.2,14.5]
[1758673342741,0.7011,4201.3,4201.2,14.5]
[1758673342926,0.7011,4201.3,4201.2,16.88023072]
[1758673343138,0.00100001,4201.9,4201.2,16.88023072]
[1758673343139,0.62311681,4201.9,4201.8,2.3799324]
[1758673343316,0.62311681,4201.9,4201.8,2.40373172]
[1758673343317,0.00100001,4201.9,4201.8,2.40373172]
[1758673343838,0.00100001,4201.9,4201.8,16.90373172]
[1758673344135,0.00100001,4201.9,4201.8,16.8799324]
[1758673344541,0.00100001,4201.9,4201.8,16.9983324]
[1758673344757,0.00100001,4201.9,4201.8,20.02386454]
[1758673347145,0.00100001,4201.9,4201.8,24.08886454]
[1758673347562,0.00100001,4201.9,4201.8,24.88086454]
[1758673356874,0.00100001,4201.9,4201.8,24.43506454]
[1758673357171,0.00100001,4201.9,4201.8,24.88086454]
[1758673357588,0.00100001,4201.9,4201.8,20.81586454]
[1758673357773,0.00100001,4201.9,4201.8,26.92986454]
[1758673357945,0.00100001,4201.9,4201.8,26.48406454]
[1758673358344,0.00100001,4201.9,4201.8,26.92986454]
[1758673358976,0.00100001,4201.9,4201.8,16.9983324]
[1758673359174,0.70210001,4201.9,4201.8,20.9339324]
[1758673359690,0.00100001,4201.9,4201.8,20.9339324]
[1758673360393,0.00100001,4201.9,4201.8,16.8799324]
[1758673360394,0.70210001,4201.9,4201.8,16.8799324]
[1758673360572,0.70210001,4201.9,4201.8,20.9339324]
[1758673362854,0.00100001,4201.9,4201.8,20.9339324]
[1758673365760,0.68090001,4201.9,4201.8,16.8799324]
[1758673365999,0.68090001,4201.9,4201.7,2.37998905]
[1758673366000,0.81451957,4201.9,4201.7,2.37994181]
[1758673366162,0.81451957,4201.9,4200.3,4.44377868]
[1758673366163,0.81351956,4201.8,4200.7,2.38053891]
[1758673366359,0.13359508,4201.7,4200.3,0.004]
[1758673366660,3.6799,4201.8,4200.5,2.3806505]
[1758673366661,3.0,4201.5,4200.5,2.3806505]
[1758673367003,3.0,4201.5,4200.3,0.004]
[1758673367004,2.40175888,4201.4,4201.0,2.38038562]
[1758673367162,3.13359508,4201.3,4200.6,14.5]
[1758673367367,0.13359508,4201.2,4200.7,2.38055503]
[1758673367694,0.6799,4201.2,4201.0,2.38038562]
[1758673367894,0.38144951,4201.6,4200.9,2.38038819]
[1758673367895,3.0,4201.5,4200.9,2.38038819]
[1758673368061,3.0,4201.5,4200.6,14.5]
[1758673368062,0.36799,4201.2,4200.6,14.5]
[1758673368262,0.36799,4201.2,4201.0,2.38032953]
[1758673368499,0.6799,4201.1,4201.0,2.38032953]
[1758673369008,0.6799,4201.1,4200.7,2.38054037]
[1758673369297,0.6799,4201.1,4200.8,2.38449189]
[1758673369504,0.6799,4201.0,4200.8,0.004]
[1758673369667,0.1334191,4200.9,4200.8,0.004]
[1758673370062,0.6799,4200.9,4200.8,0.004]
[1758673370793,0.81324896,4200.9,4200.8,0.004]
[1758673370975,4.60297386,4200.9,4200.8,0.004]
[1758673372306,4.4696249,4200.9,4200.8,0.004]
[1758673375125,6.85006718,4200.9,4200.8,0.004]
[1758673375420,6.98312536,4200.9,4200.8,0.004]
[1758673375616,4.60268308,4200.9,4200.8,0.004]
[1758673375821,6.98312536,4200.9,4200.8,0.004]
[1758673376175,12.99106718,4200.9,4200.8,0.004]
[1758673376612,1.4696249,4200.9,4200.8,0.004]
[1758673376789,9.8239,4200.9,4200.8,0.004]
[1758673377765,3.6799,4200.9,4200.8,0.004]
[1758673377972,9.8229,4200.9,4200.8,0.004]
[1758673379067,12.55786004,4200.9,4200.8,0.004]
[1758673380104,10.17741776,4200.9,4200.8,0.004]
[1758673380309,6.66165954,4200.9,4200.8,0.004]
[1758673380520,10.83964178,4200.9,4200.8,0.004]
[1758673380673,4.01774178,4200.9,4200.8,2.38449895]
[1758673380983,0.2304,4201.3,4200.8,2.38449895]
[1758673380984,0.001,4201.3,4201.1,2.3802904]
[1758673381184,3.1184,4201.1,4200.8,0.004]
[1758673381485,3.1184,4201.1,4201.0,2.38038562]
[1758673381486,0.1184,4201.1,4201.0,2.38038562]
[1758673381917,0.1184,4201.1,4200.8,0.004]
[1758673381918,4.2014,4201.1,4200.8,0.004]
[1758673382076,4.2014,4201.1,4201.0,2.38038562]
[1758673383016,0.001,4201.3,4201.2,2.3802723]
[1758673383183,0.001,4201.3,4201.2,3.0925723]
[1758673383700,0.001,4201.3,4201.2,2.3802723]
[1758673384015,0.1184,4201.2,4200.8,2.38445479]
[1758673384312,4.082,4201.1,4201.0,2.38038562]
[1758673384690,0.1184,4201.2,4201.0,2.38038562]
[1758673384889,4.083,4201.3,4201.2,2.3802723]
[1758673385478,4.083,4201.3,4201.2,16.8802723]
[1758673386383,4.75548,4201.3,4201.2,14.5]
[1758673386836,8.20598,4201.3,4200.8,0.004]
[1758673386996,0.1184,4201.0,4200.8,0.004]
[1758673387194,4.081,4200.9,4200.8,0.004]
[1758673387510,4.081,4200.9,4200.8,2.38449895]
[1758673387684,4.081,4200.9,4200.8,0.004]
[1758673387881,4.79833,4200.9,4200.8,0.004]
[1758673388081,5.24883,4200.9,4200.8,0.004]
[1758673388297,8.47086454,4200.9,4200.8,0.004]
[1758673388478,8.60409508,4200.9,4200.8,0.004]
[1758673389683,3.84319508,4200.9,4200.8,0.004]
[1758673389907,9.98419508,4200.9,4200.8,0.004]
[1758673390496,3.84319508,4200.9,4200.8,0.004]
[1758673390688,7.41943454,4200.9,4200.8,2.63329895]
[1758673391392,0.001,4201.3,4201.2,2.3802723]
[1758673391593,0.35665308,4201.3,4201.2,2.3802723]
[1758673391806,3.181,4201.3,4201.2,3.0636723]
[1758673392144,4.08,4201.3,4201.2,3.0636723]
[1758673393337,4.08,4201.3,4201.2,17.5636723]
[1758673393642,4.078,4201.3,4201.2,17.5636723]
[1758673394121,0.001,4201.3,4201.2,17.5636723]
[1758673400338,0.001,4201.3,4201.2,16.8802723]
[1758673400636,0.001,4201.3,4201.2,17.5660723]
[1758673403613,0.001,4201.3,4201.2,16.8802723]
[1758673404039,1.0775,4201.3,4201.2,14.5]
[1758673404355,1.0775,4201.3,4200.8,0.004]
[1758673404356,0.1184,4201.2,4200.9,2.3804233]
[1758673404506,4.42212987,4201.1,4200.8,0.004]
[1758673404706,0.47452987,4201.0,4200.8,0.004]
[1758673404919,0.35612987,4200.9,4200.8,2.38448522]
[1758673405242,1.02550312,4200.9,4200.8,0.004]
[1758673405403,1.54649343,4200.9,4200.8,0.004]
[1758673406301,1.54649343,4200.9,4200.8,2.38449895]
[1758673406648,1.10579343,4200.9,4200.8,2.38449895]
[1758673406837,1.10579343,4200.9,4200.8,0.004]
[1758673407209,1.54649343,4200.9,4200.8,0.004]
[1758673407410,1.10579343,4200.9,4200.8,2.38449895]
[1758673408154,1.10579343,4200.9,4200.8,0.004]
[1758673408714,1.54649343,4200.9,4200.8,0.004]
[1758673410862,0.87719343,4200.9,4200.8,0.004]
[1758673411167,6.47920312,4200.9,4200.8,0.004]
[1758673411512,6.85261559,4200.9,4200.8,0.004]
[1758673412814,7.08121559,4200.9,4200.8,0.004]
[1758673414045,0.95821559,4200.9,4200.8,0.004]
[1758673414242,7.08221559,4200.9,4200.8,0.004]
[1758673414467,10.65564943,4200.9,4200.8,0.004]
[1758673415053,11.1688805,4200.9,4200.8,0.004]
[1758673416221,14.1688805,4200.9,4200.8,0.004]
[1758673416857,13.79546803,4200.9,4200.8,0.004]
[1758673420369,4.62172575,4200.9,4200.8,0.004]
[1758673420572,6.47320312,4200.9,4200.8,0.004]
[1758673420723,4.41320312,4200.9,4200.8,0.004]
[1758673420924,0.35620312,4200.9,4200.8,0.004]
[1758673421119,6.47320312,4200.9,4200.8,0.004]
[1758673421348,9.84659861,4200.9,4200.8,0.004]
[1758673421657,10.85411847,4200.9,4200.8,0.004]
[1758673421955,13.23456075,4200.9,4200.8,0.004]
[1758673422646,10.85411847,4200.9,4200.8,0.004]
[1758673423354,8.79211847,4200.9,4200.8,0.7031]
[1758673423663,9.84459861,4200.9,4200.8,0.2397]
[1758673424107,0.35620312,4200.9,4200.8,3.08359895]
[1758673424378,0.1184,4201.1,4201.0,2.38038562]
[1758673424541,0.9374,4201.1,4201.0,17.57948562]
[1758673425753,0.001,4201.3,4201.2,2.3802723]
[1758673426281,2.278,4201.3,4201.2,3.0793723]
[1758673428892,2.278,4201.3,4201.2,0.2357]
[1758673429063,2.63401924,4201.3,4200.8,0.004]
[1758673429268,0.47441924,4201.2,4200.9,2.38044228]
[1758673429592,3.0,4201.0,4200.8,0.004]
[1758673429886,7.40904777,4200.9,4200.8,0.004]
[1758673430255,9.78949005,4200.9,4200.8,0.004]
[1758673430497,10.02429005,4200.9,4200.8,0.004]
[1758673430697,11.54261658,4200.9,4200.8,0.004]
[1758673430991,11.98601658,4200.9,4200.8,0.004]
[1758673431888,9.6055743,4200.9,4200.8,0.004]
[1758673432092,4.8743743,4200.9,4200.8,0.004]
[1758673432256,9.47104777,4200.9,4200.8,0.004]
[1758673432756,3.35604777,4200.9,4200.8,0.004]
[1758673432958,3.35604777,4200.9,4200.8,3.08359895]
[1758673433157,4.53044777,4200.9,4200.8,3.08359895]
[1758673433667,4.53044777,4200.9,4200.8,17.58359895]
[1758673434091,4.39691175,4200.9,4200.8,17.58359895]
[1758673434871,0.34091175,4200.9,4200.8,17.58359895]
[1758673435066,4.39491175,4200.9,4200.8,17.58359895]
[1758673435284,4.39491175,4200.9,4200.8,17.12019895]
[1758673435683,4.39491175,4200.9,4200.8,17.58359895]
[1758673436379,4.39491175,4200.9,4200.8,16.88449895]
[1758673437015,4.1724,4200.9,4200.8,0.004]
[1758673437301,4.9515907,4200.9,4200.8,0.004]
[1758673437506,8.11466427,4200.9,4200.8,0.004]
[1758673438015,5.05602199,4200.9,4200.8,0.004]
[1758673438223,5.29082199,4200.9,4200.8,0.004]
[1758673438510,7.11602199,4200.9,4200.8,0.004]
[1758673438707,7.11602199,4200.9,4200.8,2.38449895]
[1758673438910,7.11602199,4200.9,4200.8,0.004]
[1758673440773,7.11602199,4200.9,4200.8,2.38449895]
[1758673440969,4.41053081,4200.9,4200.8,2.62019895]
[1758673441189,4.41053081,4200.9,4200.8,3.08359895]
[1758673441514,4.18769952,4200.9,4200.8,3.08359895]
[1758673442015,4.18769952,4200.9,4200.8,2.62019895]
[1758673442220,4.054,4200.9,4200.8,3.08359895]
[1758673442636,0.001,4201.3,4201.2,2.3802723]
[1758673442784,9.47146213,4201.3,4201.2,2.3802723]
[1758673442989,10.41860834,4201.3,4201.2,2.3802723]
[1758673443422,3.0,4201.2,4200.9,0.2357]
[1758673443583,7.1876733,4201.1,4201.0,2.38037269]
[1758673444328,0.1336733,4201.1,4201.0,2.38037269]
[1758673444618,4.1866733,4201.1,4201.0,3.07947269]
[1758673444999,4.1866733,4201.1,4201.0,2.61607269]
[1758673445317,4.1866733,4201.1,4201.0,2.38037269]
[1758673445728,4.1866733,4201.1,4201.0,16.88037269]
[1758673446156,0.001,4201.3,4201.2,2.3802723]
[1758673446324,4.053,4201.3,4201.2,2.3802723]
[1758673446690,4.053,4201.3,4201.2,3.0793723]
[1758673446890,4.052,4201.3,4201.2,3.0793723]
[1758673448232,4.051,4201.3,4201.2,3.0793723]
[1758673448831,0.001,4201.3,4201.2,3.0793723]
[1758673449008,0.001,4201.3,4201.2,5.19612713]
[1758673449633,0.001,4201.3,4201.2,3.1977723]
[1758673449837,0.001,4201.3,4201.2,17.6977723]
[1758673450427,0.001,4201.3,4201.2,17.2343723]
[1758673450921,0.001,4201.3,4200.8,0.004]
[1758673450922,0.36946351,4201.3,4200.8,0.004]
[1758673451243,3.0,4201.1,4200.8,0.004]
[1758673451411,3.0,4200.9,4200.8,0.004]
[1758673451611,3.35645619,4200.9,4200.8,0.004]
[1758673451920,4.03345619,4200.9,4200.8,0.004]
[1758673452245,6.41389847,4200.9,4200.8,0.004]
[1758673452625,6.92733317,4200.9,4200.8,0.004]
[1758673452946,8.59587639,4200.9,4200.8,0.004]
[1758673455247,9.38787639,4200.9,4200.8,0.004]
[1758673458569,9.38787639,4200.9,4200.8,1e-08]
[1758673459553,6.17272564,4200.4,4200.3,0.004]
[1758673459742,13.15361653,4200.4,4200.3,0.004]
[1758673459943,17.13249976,4200.4,4200.3,1e-08]
[1758673460153,17.50604593,4200.4,4200.3,1e-08]
[1758673460365,11.18118281,4200.4,4200.3,1e-08]
[1758673460671,15.03575413,4200.4,4200.3,1e-08]
[1758673460872,8.92375413,4200.4,4200.3,1e-08]
[1758673461198,8.69345413,4200.4,4200.3,1e-08]
[1758673461374,12.36361653,4200.4,4200.3,1e-08]
[1758673461579,6.25061653,4200.4,4200.3,1e-08]
[1758673461775,12.36361653,4200.4,4200.3,1e-08]
[1758673461980,13.04571653,4200.4,4200.3,1e-08]
[1758673462142,13.83771653,4200.4,4200.3,1e-08]
[1758673462342,14.21575508,4200.4,4200.3,1e-08]
[1758673462639,14.5892677,4200.4,4200.3,1e-08]
[1758673462839,15.8330677,4200.4,4200.3,1e-08]
[1758673463278,16.47315021,4200.4,4200.3,1e-08]
[1758673463453,15.8330677,4200.4,4200.3,1e-08]
[1758673464278,9.7200677,4200.4,4200.3,1e-08]
[1758673464585,22.2850677,4200.4,4200.3,1e-08]
[1758673464880,15.8440677,4200.4,4200.3,1e-08]
[1758673465450,16.48415021,4200.4,4200.3,1e-08]
[1758673465682,15.8440677,4200.4,4200.3,1e-08]
[1758673466191,9.90747749,4200.4,4200.3,1e-08]
[1758673466373,21.8342677,4200.4,4200.3,1e-08]
[1758673466678,13.1009677,4200.4,4200.3,1e-08]
[1758673466879,14.3699677,4200.4,4200.3,1e-08]
[1758673467249,15.0520677,4200.4,4200.3,1e-08]
[1758673467646,15.8440677,4200.4,4200.3,1e-08]
[1758673468751,9.7200677,4200.4,4200.3,1e-08]
[1758673468958,22.2840677,4200.4,4200.3,1e-08]
[1758673469988,5.380839,4200.2,4200.0,0.004]
[1758673470186,5.79929379,4200.1,4200.0,0.004]
[1758673470379,11.92129379,4200.1,4200.0,0.004]
[1758673470688,14.43229379,4200.1,4200.0,0.004]
[1758673470887,14.30218948,4200.1,4200.0,0.004]
[1758673471671,14.30218948,4200.1,4200.0,0.2316]
[1758673471872,14.30218948,4200.1,4200.0,0.6624]
[1758673472091,14.30018948,4200.1,4200.0,0.6624]
[1758673473420,2.79929379,4200.1,4200.0,0.6624]
[1758673473602,8.85735188,4200.1,4200.0,0.6624]
[1758673473795,8.85735188,4200.1,4200.0,0.004]
[1758673473796,11.85735188,4200.1,4200.0,0.004]